Cogmind - Beta 16 @@@ ROGUE MODE // 2025.11.10 @ 07:06:06 Player: Dadrick Result: Destroyed by D-53 Grenadier with Mini Grenade Launcher Performance ------------- Evolutions (0) 0 Regions Visited (2) 400 Robots Destroyed (21) 105 Value Destroyed (360) 360 Prototype IDs (2) 40 Alien Tech Used (0) 0 Bonus (0) 0 TOTAL SCORE: 905 Bonus ------- None Cogmind --------- Core Integrity 0/250 Matter 165/300 Energy 99/100 System Corruption 0% Temperature Cool (0) Movement Core (50) Location -10/Mines Parts ------- > --- POWER (1) -------- (None) > --- PROPULSION (2) --- (None) > --- UTILITY (2) ------ (None) > --- WEAPON (2) ------- (None) > --- INVENTORY (5) ---- Aluminum Leg Small Laser Light Assault Rifle Grenade Launcher Mining Laser Peak State ------------ > --- POWER ------------ Light Ion Engine > --- PROPULSION ------- Aluminum Leg Aluminum Leg > --- UTILITY ---------- Large Storage Unit Light Armor Plating > --- WEAPON ----------- Small Laser Assault Rifle > --- INVENTORY -------- Ion Engine Aluminum Leg Aluminum Leg Aluminum Leg Seismic Detector Tractor Beam Small Laser Grenade Launcher Grenade Launcher Mining Laser [Rating: 8] Favorites ----------- Power Light Ion Engine Engine Light Ion Engine Propulsion Aluminum Leg Leg Aluminum Leg Utility Seismic Detector Device Seismic Detector Storage Large Storage Unit Protection Light Armor Plating Weapon Small Laser Energy Gun Small Laser Ballistic Gun Assault Rifle Launcher Grenade Launcher Special Weapon Mining Laser Build | -11 -10 -10 ------- Run | Yrd Mat Min Slots Evolved . | . . . Power . | . . . Propulsion . | . . . Utility . | . . . Weapon . | . . . Parts Attached 17 | 7 5 5 Power 2 | 1 . 1 Engine 2 | 1 . 1 Core . | . . . Reactor . | . . . Propulsion 5 | 2 2 1 Treads . | . . . Leg 5 | 2 2 1 Wheel . | . . . Hover . | . . . Flight . | . . . Utility 4 | 2 2 . Device 1 | 1 . . Storage 2 | 1 1 . Processor . | . . . Hackware . | . . . Protection 1 | . 1 . Artifact . | . . . Weapon 6 | 2 1 3 Energy Gun 2 | 1 . 1 Energy Cannon . | . . . Ballistic Gun 2 | 1 . 1 Ballistic Cannon . | . . . Launcher 1 | . . 1 Special Weapon 1 | . 1 . Impact Weapon . | . . . Slashing Weapon . | . . . Piercing Weapon . | . . . Special Melee Weapon . | . . . Unidentified Prototypes . | . . . Parts Lost 8 | . . 8 Power 2 | . . 2 Propulsion 2 | . . 2 Utility 1 | . . 1 Weapon 3 | . . 3 Highest Loss Streak 6 | . . 6 To Critical Strikes 1 | . . 1 Average Backups 10 | 2 10 12 Power 1 | . 1 1 Propulsion 2 | . 2 4 Utility 1 | . 1 2 Weapon 4 | 1 4 4 Tool/Special . | . . . Unused Backups 7 | . . 7 Power 1 | . . 1 Propulsion 2 | . . 2 Utility 2 | . . 2 Weapon 2 | . . 2 Tool/Special . | . . . Average Slot Usage (%) 98 | . 98 97 Engine 13 | . 13 12 Leg 27 | . 27 27 Device 10 | . 11 7 Storage 14 | . 14 14 Protection 2 | . 2 6 Energy Gun 13 | . 13 12 Ballistic Gun 13 | . 13 13 Peak Build Rating 8 | 7 8 8 Average Rating 7 | 5 7 7 On Entrance 5 | . 7 8 Avg Prop Armor Cover (%) . | . . . Naked Turns 1 | . . 1 Heaviest Build 31 | 12 29 31 Greatest Support 20 | 20 20 20 Greatest Overweight (x) 7 | . 7 2 Average Overweight (x) . | . . . Largest Inventory Capacity 15 | 8 15 15 Average Capacity 12 | 7 12 14 Most Carried 14 | 4 14 14 Average Carried 10 | 2 10 12 Final Capacity 15 | 8 15 5 Final Carried 14 | 4 14 5 Class Distribution -------------------- 91% | Mutant 8% | Scavenger-Mutant Dominant Class ---------------- Mutant | -10/Materials Scavenger-Mutant | -10/Mines Resources | -11 -10 -10 ----------- Run | Yrd Mat Min Matter Collected 552 | 312 118 122 Remotely . | . . . Salvage Created 600 | 158 293 149 Parts 38 | 16 11 11 Haulers Intercepted . | . . . Recyclers Shooed 2 | . 1 1 Parts Field Recycled . | . . . Retrieved Matter . | . . . Parts Self-Destructed . | . . . Prevented . | . . . Parts Restored . | . . . Kills | -11 -10 -10 ------- Run | Yrd Mat Min Combat Hostiles Destroyed 17 | . 7 10 Guns 9 | . 7 2 AOE 8 | . . 8 Classes Destroyed 5 | 2 2 1 Tunneler 4 | 4 . . Recycler 2 | 1 1 . Swarmer 9 | . 3 6 Grunt 6 | . 4 2 Assembled 2 | . . 2 Best Kill Streak 4 | 2 4 3 Combat Bots Only 4 | . 4 3 Max Kills in Single Turn 3 | 1 1 3 Gunslinging . | . . . Exploded 3 | . . 3 Melee . | . . . Uniques/NPCs Destroyed . | . . . Combat | -11 -10 -10 -------- Run | Yrd Mat Min Hostile Shots Fired 87 | . 31 56 Missed 19 | . 7 12 Hits 68 | . 24 44 Projectile 68 | . 24 44 AOE 5 | . . 5 Critical Strikes 2 | . . 2 Damage Taken 1027 | . 268 759 Core 274 | . 69 205 Absorbed by Shields . | . . . Regen/Repaired (Parts) 81 | . 81 . Core Remaining (%) 100 | 100 . . Volleys Fired 65 | 14 29 22 Largest 2 | 2 2 2 Hottest 100 | 60 100 60 Shots Fired 115 | 28 56 31 Gun 109 | 28 55 26 Cannon . | . . . Launcher 5 | . . 5 Special 1 | . 1 . Kinetic 53 | 14 28 11 Thermal 57 | 14 28 15 Explosive 5 | . . 5 Electromagnetic . | . . . Robot Hit Streak 9 | 6 9 7 Robot Miss Streak 4 | 3 4 3 Penetration Max . | . . . Secondary Targets 1 | . . 1 Max Gunslinging Chain 1 | . . 1 Shots Hit Robots 70 | 15 37 18 Core Hits 40 | 6 13 21 Critical Kills . | . . . Critical Parts Destroyed 1 | . 1 . Critical Strikes 1 | . 1 . Destroy 1 | . 1 . Melee Attacks . | . . . Impact . | . . . Slashing . | . . . Piercing . | . . . Sneak Attacks . | . . . Combat Hostiles . | . . . Follow-up Attacks . | . . . Damage Inflicted 1247 | 176 414 657 Guns 776 | 176 414 186 Cannons . | . . . Explosions 471 | . . 471 Melee . | . . . Ramming . | . . . Kinetic 362 | 86 208 68 Thermal 414 | 90 206 118 Explosive 471 | . . 471 Electromagnetic . | . . . Impact . | . . . Slashing . | . . . Piercing . | . . . Highest Corruption . | . . . Average Corruption . | . . . Corruption Purged . | . . . Corruption Blocked . | . . . Overload Shots . | . . . Overflow Damage 40 | . . 40 Projectiles . | . . . Explosions 40 | . . 40 Melee . | . . . Knockbacks . | . . . Impact . | . . . Kinetic . | . . . Secondary . | . . . Self-Inflicted Damage 16 | . . 16 Shots 1 | . . 1 Rammed . | . . . Targets Rammed . | . . . Kicked . | . . . Crushed . | . . . Highest Temperature 114 | . 114 61 Average Temperature 40 | . 41 39 Received Heat Transfer 186 | . 105 81 Siege Activations . | . . . Martial Activations . | . . . Shielding Activations . | . . . Robots Disrupted . | . . . Combat Hostiles . | . . . Robots Corrupted . | . . . Combat Hostiles . | . . . Parts Fried . | . . . Impact Corruptions . | . . . Robots Melted . | . . . Combat Hostiles . | . . . Parts Melted 4 | . 3 1 Heat Transferred 950 | 200 475 275 Parts Sabotaged . | . . . Parts Stolen . | . . . Parts Stripped . | . . . Power Chain Reactions . | . . . Alert | -11 -10 -10 ------- Run | Yrd Mat Min Maximum Alert Level . | . . . Low Security (%) 100 | 100 100 100 Level 1 . | . . . Level 2 . | . . . Level 3 . | . . . Level 4 . | . . . Level 5 . | . . . High Security . | . . . Max Security . | . . . Peak Influence 136 | 10 136 127 Initial . | . . . Average 32 | 1 26 74 Influence Increases 434 | 25 196 213 Destroy 0b10 Robot/C 300 | . 140 160 Destroy 0b10 Robot/NC 30 | 25 5 . Destroy Leader 60 | . 30 30 Successful Hack 19 | . 19 . Destroy Structure 25 | . 2 23 Influence Decreases 421 | 25 196 200 Time Decay 351 | 25 196 130 Lost Part 70 | . . 70 Squads Dispatched 2 | . 2 . Investigation . | . . . Extermination . | . . . Reinforcement 2 | . 2 . Assault . | . . . Garrison . | . . . Intercept . | . . . Searches Triggered . | . . . Construction Impeded . | . . . Haulers Reinforced . | . . . Active Scanning Responses . | . . . Cargo Convoy Interrupts . | . . . Stealth | -11 -10 -10 --------- Run | Yrd Mat Min Distress Signals 2 | . 2 . Communications Jammed . | . . . Distress Signals . | . . . Times Spotted 36 | . 17 19 Peak Tracking Total 13 | . 4 13 Tactical Retreats . | . . . Traps | -11 -10 -10 ------- Run | Yrd Mat Min Traps Triggered 4 | . 4 . Indirectly . | . . . Trap Hack Attempts . | . . . Triggered . | . . . Disarmed . | . . . Reprogrammed . | . . . Reused . | . . . Traps Extracted . | . . . Installed . | . . . Triggered . | . . . Machines | -11 -10 -10 ---------- Run | Yrd Mat Min Machines Disabled . | . . . Max in Single Turn . | . . . Machines Repaired . | . . . Machines Dismantled . | . . . Machines Sabotaged . | . . . Overloaded Fab Kills . | . . . Hacking | -11 -10 -10 --------- Run | Yrd Mat Min Machines Accessed 6 | . 6 . Terminals 4 | . 4 . Fabricators . | . . . Repair Stations 1 | . 1 . Recycling Units 1 | . 1 . Scanalyzers . | . . . Garrison Access . | . . . Total Hacks 23 | . 23 . Successful 15 | . 15 . Failed 8 | . 8 . Catastrophic . | . . . Database Lockouts . | . . . Manual 10 | . 10 . Terminals 16 | . 16 . Fabricators . | . . . Repair Stations 4 | . 4 . Recycling Units 3 | . 3 . Scanalyzers . | . . . Garrison Access . | . . . Terminal Hacks 5 | . 5 . Prototype ID Bank 1 | . 1 . Locate Traps 1 | . 1 . Hauler Manifests 1 | . 1 . Registered Components 1 | . 1 . Zone Layout 1 | . 1 . Fabricator Hacks . | . . . Repair Station Hacks 4 | . 4 . Scan Component 2 | . 2 . Repair 2 | . 2 . Recycling Unit Hacks 1 | . 1 . Retrieve Components 1 | . 1 . Scanalyzer . | . . . Garrison Access Hacks . | . . . Unauthorized Hacks 5 | . 5 . Terminals 5 | . 5 . Botnet 2 | . 2 . Skim 3 | . 3 . Fabricators . | . . . Repair Stations . | . . . Recycling Units . | . . . Scanalyzers . | . . . Garrison Access . | . . . Data Cores Recovered . | . . . Used . | . . . Hacking Detections 5 | . 5 . Full Trace Events . | . . . Feedback Events . | . . . Feedback Blocked . | . . . Robot Schematics Acquired . | . . . Robots Built . | . . . Authchips . | . . . Time . | . . . Total Robot Build Rating . | . . . Part Schematics Acquired . | . . . Parts Built . | . . . Authchips . | . . . Time . | . . . Total Part Build Rating . | . . . Part Studies Acquired . | . . . Parts Repaired 2 | . 2 . Time 64 | . 64 . Parts Recycled . | . . . Recycled Matter . | . . . Retrieved Matter . | . . . Retrieved Components 2 | . 2 . Parts Scanalyzed . | . . . Part Schematics Acquired . | . . . Parts Damaged . | . . . Bothacking | -11 -10 -10 ------------ Run | Yrd Mat Min Used RIF Installer . | . . . Robots Hacked . | . . . Non-combat . | . . . Combat . | . . . Robot Hacks Applied . | . . . Relay Couplers Released . | . . . Fabnet Peak Effective % . | . . . Robots Rewired . | . . . Allies Hacked . | . . . Hacks Repelled . | . . . Allies | -11 -10 -10 -------- Run | Yrd Mat Min Total Allies . | . . . Largest Group . | . . . Highest-Rated Group . | . . . Highest-Rated Ally . | . . . Total Orders . | . . . Ally Attacks . | . . . Total Damage . | . . . Kills . | . . . Allies Corrupted . | . . . Allies Melted . | . . . Intel | -11 -10 -10 ------- Run | Yrd Mat Min Active Infowar (turns) 1071 | 12 924 135 Seismic 1071 | 12 924 135 Robot Analysis Total . | . . . Derelict Logs Recovered . | . . . Drone Launches . | . . . Drone Recoveries . | . . . Exploration | -11 -10 -10 ------------- Run | Yrd Mat Min Turns Passed 1522 | 154 1106 262 Spaces Moved 780 | 84 593 103 Core 8 | 4 2 2 Treads . | . . . Legs 772 | 80 591 101 Wheels . | . . . Hover . | . . . Flight . | . . . Fastest Speed 50 | 50 120 50 Average Speed 153 | 116 153 187 Slowest Speed 400 | 120 400 260 Overloaded Moves . | . . . Propulsion Burnouts . | . . . Robots Hopped . | . . . Potential Cave-ins . | . . . Cave-ins Triggered . | . . . Exploration Rate (%) 40 | 5 84 31 Regions Visited 2 Branch Regions 1 Pre-discovered Areas . | . . . Known Exits Taken . | . . . Unknown Exits Taken 2 | 1 1 . Scrap Searched . | . . . Spaces Dug 1 | . 1 . Terrain Destroyed 30 | . 1 29 Melee . | . . . Projectile 1 | . 1 . AOE 29 | . . 29 Terrain Rammed . | . . . Walls Destroyed . | . . . Machines Disabled . | . . . Actions | -11 -10 -10 --------- Run | Yrd Mat Min Total 973 | 108 728 137 Wait 75 | . 75 . Move 778 | 83 592 103 Hop . | . . . Pick Up 19 | 4 14 1 Fast Attach 15 | 7 8 . Attach 2 | . . 2 Detach . | . . . Swap 15 | . 7 8 Drop 4 | . 3 1 Fire 65 | 14 29 22 Melee . | . . . Ram . | . . . Kick . | . . . Crush . | . . . Escape Stasis . | . . . Rewire . | . . . Trap . | . . . Miscellaneous . | . . . Route ------- -11/Scrapyard -10/Materials (discovered 4 exits: [*Mat x3] / [*Min]) -10/Mines (discovered 1 exit: [*Mat]) History --------- Turn | Location | Event 8 | -11/Scrapyard | Discovered new exit (range 16) 155 | -11/Scrapyard | Entered Materials 327 | -10/Materials | Build established: Mutant 374 | -10/Materials | Discovered new exit (range 15) 406 | -10/Materials | Discovered new exit (range 15) 423 | -10/Materials | Discovered new exit (range 10) 671 | -10/Materials | Discovered new exit (range 16) 1084 | -10/Materials | Repaired Aluminum Leg 1124 | -10/Materials | Repaired Lgt. Nuclear Core 1261 | -10/Materials | Entered Mines 1380 | -10/Mines | Discovered new exit (range 6) 1504 | -10/Mines | Assembled infested the area 1509 | -10/Mines | Assisted by a Guerilla fighting off Assembled 1517 | -10/Mines | Core integrity fell below 50% 1522 | -10/Mines | Released all parts (1) 1523 | -10/Mines | Core integrity fell below 20% 1523 | -10/Mines | Destroyed by D-53 Grenadier with Mini Grenade Launcher Last Messages --------------- 01511_ as-18933 suffers critical hit (Destroy). 01512_ Ion Engine destroyed. 01514_ as-18933 destroyed. 01514_ as-84464 destroyed. 01515_ HV Slug penetrates Wall. 01517_ HV Slug penetrates Earth. 01518_ C-45 Heavy ARC bursts open, deploying its payload. 01518_ D-53 Grenadier unfolds itself. 01519_ Aluminum Leg destroyed. 01520_ Grenade Launcher destroyed. 01520_ as-17849 destroyed. 01521_ 2F-5K1(h) destroyed. 01521_ Lgt. Assault Rifle destroyed. 01521_ as-44299 destroyed. 01522_ U-05 Engineer lays Concrete. 01522_ Aluminum Leg destroyed. 01522_ Seismic Detector destroyed. 01522_ as-51143 destroyed. 01522_ Released Lrg. Storage Unit. 01523_ U-05 Engineer lays Concrete. Map ----- +----------------------------------------------------+ | | | | | | | | | | | | | | | | | | | | | | | | | ????????????#????????????????????????????????????? | | ????????????# ?##????????????????????????????????? | | ?????????????#;# ?????#####?????????????????????? | | ???????##????#; ???## ######????????????????? | | ?????? ### #### ##???????????????? | | ?????? #####???????????? | | ???????# ##??????????? | | ????????# a #??????????? | | ????????# #???????###?? | | ?????????# % #??###??## #? | | ?????????????# !!= #?## ##?# # | | ?????????????### =!= #### ##?# #?# | | ???????????????## *! ##???????## #???# | | ????????????????## @ #######?## #????# | | ?????????????????## ### ### ##????# | | ??????????????????######## udd ####??# | | ?????????????????????????## = #### | | ??????????????????????????#u ### | | ??????????????????????????# ## ##?## < | | ?????????????????????????# #######???#### ## | | ??????????????????????? ##???????????## ### | | ???????????????????? ?????????????###?# # | | ?????????????????? #?????#########???# # | | ?????????????????## ## ##?????# #???# # | | ??????????????????## #?# ???????# [ #???# # | | ???????????????????### ??# ???????# [ #???# # | | ?????????????????????#???# ???????# = ##??# # | | ????????????????????????? ???????# ##?# # | | ?????????????????????????# ???????# #?# # | | ?????????????????????????# ???????# ##?# # | | ????????????????????????? ????????#### = #?# # | | ????????????????????????? ??????##???### #?# # | | ?????????????????????????# ??????? # ####?# # | | ???????????????????????????????? """ ## #????# # | | ????????????????????????????? """ ## ###### # | | ???????????????????????????????? """ # | | ?????????????????????????????? ## ######## | | ?????????????????????????? ??# #??????? | +----------------------------------------------------+ Best States ------------- Heat Dissipation 25 Energy Generation 10 Energy Capacity 250 Matter Stores 300 Matter Capacity 300 Sight Range 16 Terrain Scan Density 10 Armor Coverage 150 Evasion (%) 55 Item Schematics ----------------- None Robot Schematics ------------------ None Fabricated ------------ Nothing Repaired ---------- Aluminum Leg | 33% | -10/Materials Lgt. Nuclear Core | 58% | -10/Materials Studied --------- None Alien Tech Used ----------------- None Achievements -------------- None Challenges ------------ None Game ------ Seed WeightPlasmaTether Manual? 0 Play Time 00:15:13 Cumulative 417.3 hours Start 2025.11.10 @ 06:50:17 End 2025.11.10 @ 07:06:06 Sessions 1 Manual Loads 0 Difficulty Rogue Special Mode None Game No. 155 Rogue 134 Adventurer 21 Explorer 0 Win Type - Total 21 Types 13/1/4/1/0/0/0/1/0/1 Lore% 60 Gallery% 73 Achievement% 54 Wizard Run 0 Options --------- Layout 1 ASCII 0 Keyboard 0 Movement Mouse Keybinds 0 Fullscreen 2 Font 32/SmallcapsGlow Map View 77x35 Zoom Use 0% Tactical HUD 1 Map Filters NONE Filters NONE Steam 1 RUN: ec4e087d-2e67-4e22-af9c-76b3335c7fe1